fUSD/lending_fUSD_20240118
["ID","MTS","AMOUNT","RATE_DAILY","PERIOD"]
[312097971,1705618248882,-151.0,0.00033,7]
[312097972,1705618248891,-151.0,0.00033,7]
[312097973,1705618248900,-151.0,0.00033,7]
[312097974,1705618248910,-278.23921,0.00033,7]
[312097975,1705618248919,-278.23921,0.00033,7]
[312097976,1705618248928,-529.010673,0.00033,7]
[312097977,1705618248938,-529.010673,0.00033,7]
[312097978,1705618248947,-151.0,0.00033,7]
[312097979,1705618248956,-151.0,0.00033,7]
[312097980,1705618248965,-151.0,0.00033,7]
[312097981,1705618248974,-151.0,0.00033,7]
[312097982,1705618248984,-120696.88246921,0.00033,7]
[312097983,1705618248993,-155.0,0.00033,4]
[312097984,1705618249002,-1332.0,0.00033,3]
[312097985,1705618249011,-1000.0,0.00033,3]
[312097986,1705618249021,-1000.0,0.00033,3]
[312097987,1705618249030,-2000.0,0.00033,2]
[312097988,1705618249040,-174.0,0.00033,2]
[312097989,1705618249049,-185.0,0.00033,2]
[312097990,1705618249058,-152.0,0.00033,2]
[312097991,1705618249067,-154.407249,0.00033,7]
[312097992,1705618249076,-151.0,0.00033,7]
[312097993,1705618249085,-150.91,0.00033,2]
[312097994,1705618249094,-150.91,0.00033,2]
[312097995,1705618249103,-150.91,0.00033,2]
[312097996,1705618249113,-150.91,0.00033,2]
[312097997,1705618249122,-150.91,0.00033,2]
[312097998,1705618249132,-150.91,0.00033,2]
[312097999,1705618249141,-150.91,0.00033,2]
[312098000,1705618249150,-150.91,0.00033,2]
[312098001,1705618249159,-150.91,0.00033,2]
[312098002,1705618249168,-150.91,0.00033,2]
[312098003,1705618249177,-150.91,0.00033,2]
[312098004,1705618249186,-150.91,0.00033,2]
[312098005,1705618249195,-150.91,0.00033,2]
[312098006,1705618249204,-150.91,0.00033,2]
[312098007,1705618249213,-150.91,0.00033,2]
[312098008,1705618249222,-150.91,0.00033,2]
[312098009,1705618249231,-150.91,0.00033,2]
[312098010,1705618249244,-150.91,0.00033,2]
[312098011,1705618249253,-150.91,0.00033,2]
[312098012,1705618249262,-150.91,0.00033,2]
[312098013,1705618249272,-150.91,0.00033,2]
[312098014,1705618249282,-150.91,0.00033,2]
[312098015,1705618249292,-150.91,0.00033,2]
[312098016,1705618249301,-150.91,0.00033,2]
[312098017,1705618249310,-150.91,0.00033,2]
[312098018,1705618249321,-150.91,0.00033,2]
[312098019,1705618249329,-150.91,0.00033,2]
[312098020,1705618249338,-150.91,0.00033,2]
[312098021,1705618249348,-150.91,0.00033,2]
[312098022,1705618249357,-150.91,0.00033,2]
[312098023,1705618249366,-150.91,0.00033,2]
[312098024,1705618249375,-150.91,0.00033,2]
[312098025,1705618249385,-150.91,0.00033,2]
[312098026,1705618249394,-150.91,0.00033,2]
[312098027,1705618249403,-150.91,0.00033,2]
[312098028,1705618249413,-150.91,0.00033,2]
[312098029,1705618249421,-150.91,0.00033,2]
[312098030,1705618249430,-150.91,0.00033,2]
[312098031,1705618249440,-150.91,0.00033,2]
[312098032,1705618249449,-150.91,0.00033,2]
[312098033,1705618249457,-150.91,0.00033,2]
[312098034,1705618249467,-150.91,0.00033,2]
[312098035,1705618249476,-150.91,0.00033,2]
[312098036,1705618249485,-150.91,0.00033,2]
[312098037,1705618249495,-150.91,0.00033,2]
[312098038,1705618249504,-150.91,0.00033,2]
[312098039,1705618249514,-150.91,0.00033,2]
[312098040,1705618249523,-150.91,0.00033,2]
[312098041,1705618249534,-150.91,0.00033,2]
[312098042,1705618249544,-150.91,0.00033,2]
[312098043,1705618249554,-150.91,0.00033,2]
[312098044,1705618249564,-150.91,0.00033,2]
[312098045,1705618249573,-150.91,0.00033,2]
[312098046,1705618249582,-150.91,0.00033,2]
[312098047,1705618249591,-150.91,0.00033,2]
[312098048,1705618249600,-150.91,0.00033,2]
[312098049,1705618249610,-150.91,0.00033,2]
[312098050,1705618249619,-150.91,0.00033,2]
[312098051,1705618249629,-150.91,0.00033,2]
[312098052,1705618249640,-150.91,0.00033,2]
[312098053,1705618249650,-150.91,0.00033,2]
[312098054,1705618249659,-151.0,0.00033,7]
[312098055,1705618249669,-150.91,0.00033,2]
[312098056,1705618249678,-150.91,0.00033,2]
[312098057,1705618249687,-500.0,0.00033013,2]
[312098058,1705618249695,-361.842,0.00033077,2]
[312098059,1705618249704,-1234.0,0.00033077,2]
[312098060,1705618249714,-433.571,0.00033077,2]
[312098061,1705618249722,-1138.0,0.00033077,2]
[312098062,1705618249731,-2270.0,0.00033077,2]
[312098063,1705618249740,-459.948,0.00033077,2]
[312098064,1705618249751,-16152.204,0.00033077,2]
[312098065,1705618249762,-1000.0,0.0003309,7]
[312098066,1705618249771,-456.9031447,0.0003309,7]
[312098067,1705618249780,-205.77703365,0.0003309,7]
[312098068,1705618249789,-536.68242762,0.0003309,7]
[312098069,1705618249799,-1517.03351342,0.00033135,7]
[312098070,1705618249808,-500.0,0.0003315,2]
[312098071,1705618249817,-185.0,0.00033151,2]
[312098072,1705618249826,-152.0,0.00033151,2]
[312098073,1705618249835,-295.05028948,0.00033157,7]
[312098074,1705618249844,-154.49938194,0.00033167,7]
[312098075,1705618249853,-150.1,0.00033198,2]
[312098076,1705618249862,-186.10865145,0.00033229,7]
[312098077,1705618249872,-158.11,0.00033268,2]
[312098078,1705618249881,-865.64361853,0.00033277,7]
[312098079,1705618249889,-500.0,0.00033287,2]
[312098080,1705618249898,-500.0,0.00033424,2]
[312098081,1705618249907,-236.83,0.00033453,2]
[312098082,1705618249916,-299.34,0.00033453,2]
[312098083,1705618249924,-2661.26917299,0.00033475,7]
[312098084,1705618249933,-364.25149533,0.000335,4]
[312098085,1705618249942,-392.3606081,0.000335,2]
[312098086,1705618249951,-705.09,0.00033537,2]
[312098087,1705618249960,-157.83,0.000336,2]
[312098088,1705618249969,-157.83,0.000336,2]
[312098089,1705618249977,-5261.67007606,0.00033631,7]
[312098090,1705618249987,-181.17942115,0.00033696,7]
[312098092,1705618249995,-5631.99347675,0.00033702,5]
[312098093,1705618250004,-181.17942115,0.00033733,7]
[312098094,1705618250013,-2230.62286024,0.00033738,7]
[312098095,1705618250023,-1000.0,0.00033768,2]
[312098096,1705618250032,-153.84,0.0003379,2]
[312098097,1705618250041,-500.0,0.00033835,2]
[312098098,1705618250050,-1533.59852009,0.00033849,7]
[312098099,1705618250059,-1091.62497609,0.00033886,7]
[312098100,1705618250068,-500.0,0.00033898,7]
[312098101,1705618250078,-15031.33545977,0.000339,7]
[312098102,1705618250086,-2419.8551844,0.000339,6]
[312098103,1705618250095,-1504.65539773,0.000339,2]
[312098104,1705618250105,-1504.65539756,0.000339,2]
[312098105,1705618250114,-1504.65539756,0.000339,2]
[312098106,1705618250124,-1504.65539756,0.000339,2]
[312098107,1705618250133,-1504.65539756,0.000339,2]
[312098108,1705618250141,-1504.65539756,0.000339,2]
[312098109,1705618250151,-1504.65539756,0.000339,2]
[312098110,1705618250160,-1504.65539756,0.000339,2]
[312098111,1705618250169,-1504.65539756,0.000339,2]
[312098112,1705618250178,-1504.65539756,0.000339,2]
[312098113,1705618250187,-1504.65539756,0.000339,2]
[312098114,1705618250196,-1504.65539756,0.000339,2]
[312098115,1705618250206,-1504.65539756,0.000339,2]
[312098116,1705618250215,-1504.65539756,0.000339,2]
[312098117,1705618250224,-1504.65539756,0.000339,2]
[312098118,1705618250234,-1504.65539756,0.000339,2]
[312098119,1705618250250,-1504.65539756,0.000339,2]
[312098120,1705618250259,-1504.65539756,0.000339,2]
[312098121,1705618250269,-192.61145802,0.000339,2]
[312098122,1705618250278,-1504.65539756,0.000339,2]
[312098123,1705618250287,-1504.65539756,0.000339,2]
[312098124,1705618250297,-509.9789798,0.00033937,7]
[312098125,1705618250306,-151.36920846,0.00033941,7]
[312098126,1705618250316,-500.0,0.00033972,2]
[312098127,1705618250326,-730.9803596,0.00033977,2]
[312098128,1705618250336,-2847.2656416,0.00033977,2]
[312098129,1705618250345,-1572.9649834,0.00033977,2]
[312098130,1705618250354,-506.0794281,0.00033977,2]
[312098131,1705618250363,-23096.4884188,0.00033977,2]
[312098132,1705618250372,-1247.5221119,0.00033977,2]
[312098133,1705618250381,-18845.4998522,0.00033977,2]
[312098134,1705618250391,-25963.5255258,0.00033977,2]
[312098135,1705618250400,-1783.15835545,0.0003398,7]
[312098136,1705618250409,-200.0,0.0003399,7]
[312098137,1705618250418,-204.30056541,0.0003399,7]
[312098138,1705618250427,-4338.02976665,0.00033999,2]
[312098139,1705618250437,-1839.05780797,0.00033999,2]
[312098140,1705618250447,-7473.60443344,0.00033999,2]
[312098141,1705618250456,-4718.14201091,0.00033999,2]
[312098142,1705618250465,-100000.0,0.00034,4]
[312098143,1705618250474,-500.0,0.00034,2]
[312098144,1705618250483,-1000.0,0.00034,4]
[312098145,1705618250492,-155.0,0.00034,4]
[312098146,1705618250501,-81793.0085371,0.00034,2]
[312098147,1705618250510,-26632.21866659,0.00034,2]
[312098148,1705618250520,-1047981.07544322,0.00034,2]
[312098149,1705618250529,-1209.31605685,0.00034,4]
[312098150,1705618250539,-1000.0,0.00034,4]
[312098151,1705618250676,-1000.0,0.00034,4]
[312098152,1705618250699,-2000.0,0.00034,2]
[312098153,1705618250708,-506.12789592,0.00034,4]
[312098154,1705618250717,-850.0,0.00034,3]
[312098155,1705618250726,-151.0,0.00034,7]
[312098156,1705618250735,-151.0,0.00034,7]
[312098157,1705618250744,-151.0,0.00034,7]
[312098158,1705618250753,-173.93742875,0.00034,2]
[312098159,1705618250762,-151.0,0.00034,7]
[312098160,1705618250772,-151.0,0.00034,7]
[312098161,1705618250781,-151.0,0.00034,7]
[312098162,1705618250790,-151.0,0.00034,7]
[312098163,1705618250799,-278.23921,0.00034,7]
[312098164,1705618250808,-278.23921,0.00034,7]
[312098165,1705618250818,-529.010673,0.00034,7]
[312098166,1705618250827,-529.010673,0.00034,7]
[312098167,1705618250836,-151.0,0.00034,7]
[312098168,1705618250846,-151.0,0.00034,7]
[312098169,1705618250855,-151.0,0.00034,7]
[312098170,1705618250865,-269.989452,0.00034,7]
[312098171,1705618250875,-152.878909,0.00034,7]
[312098172,1705618250886,-151.0,0.00034,7]
[312098173,1705618250896,-151.0,0.00034,7]
[312098174,1705618250906,-151.0,0.00034,7]
[312098175,1705618250916,-151.0,0.00034,7]
[312098176,1705618250925,-151.0,0.00034,7]
[312098177,1705618250936,-189.189839,0.00034,7]
[312098178,1705618250945,-547.26524,0.00034,7]
[312098179,1705618250955,-547.26524,0.00034,7]
[312098180,1705618250964,-151.0,0.00034,7]
[312098181,1705618250974,-151.0,0.00034,7]
[312098182,1705618250983,-151.0,0.00034,7]
[312098183,1705618250993,-1072.074095,0.00034,7]
[312098184,1705618251003,-1072.074095,0.00034,7]
[312098185,1705618251013,-275.5,0.00034,2]
[312098186,1705618251022,-151.0,0.00034,7]
[312098187,1705618251032,-1965.797818,0.00034,7]
[312098188,1705618251041,-1965.797818,0.00034,7]
[312098189,1705618251050,-151.0,0.00034,7]
[312098190,1705618251059,-151.0,0.00034,7]
[312098191,1705618251068,-151.0,0.00034,7]
[312098192,1705618251078,-180.606058,0.00034,7]
[312098193,1705618251087,-166.420693,0.00034,7]
[312098194,1705618251096,-151.0,0.00034,7]
[312098195,1705618251105,-151.0,0.00034,7]
[312098196,1705618251114,-500.0,0.00034109,2]
[312098197,1705618251123,-153.08268664,0.00034148,7]
[312098198,1705618251133,-1000.0,0.000342,2]
[312098199,1705618251142,-666.0,0.00034246,2]
[312098200,1705618251152,-1752.83,0.00034246,2]
[312098201,1705618251161,-158.11,0.00034247,2]
[312098202,1705618251171,-300.0,0.00034247,10]
[312098203,1705618251180,-300.0,0.00034247,10]
[312098204,1705618251190,-155.0,0.00034247,2]
[312098205,1705618251200,-204.0,0.00034314,21]
[312098206,1705618251209,-990.49536013,0.00034316,6]
[312098207,1705618251218,-990.49536008,0.00034316,6]
[312098208,1705618251228,-990.49536008,0.00034316,6]
[312098209,1705618251238,-990.49536008,0.00034316,6]
[312098210,1705618251250,-990.49536008,0.00034372,6]
[312098211,1705618251259,-295.05028948,0.00034468,7]
[312098212,1705618251268,-4424.46167598,0.000345,2]
[312098213,1705618251278,-5000.0,0.000345,20]
[312098214,1705618251287,-705.09,0.00034515,2]
[312098215,1705618251297,-174.0,0.00034521,2]
[312098216,1705618251306,-185.0,0.00034521,2]
[312098217,1705618251315,-152.0,0.00034521,2]
[312098218,1705618251328,-295.05028948,0.00034522,7]
[312098219,1705618251338,-2052.0,0.00034554,30]
[312098220,1705618251347,-455.53,0.00034655,2]
[312098221,1705618251357,-7063.0000985,0.00034689,14]
[312098222,1705618251367,-153.84,0.00034703,2]
[312098223,1705618251378,-408.91,0.00034703,2]
[312098224,1705618251388,-284.52,0.0003474,2]
[312098225,1705618251397,-150.0,0.0003474,2]
[312098226,1705618251407,-150.0,0.0003474,2]
[312098227,1705618251417,-150.0,0.0003474,2]
[312098228,1705618251433,-150.0,0.0003474,2]
[312098229,1705618251442,-150.0,0.0003474,2]
[312098230,1705618251452,-150.0,0.0003474,2]
[312098231,1705618251462,-150.0,0.0003474,2]
[312098232,1705618251471,-16000.0,0.00034782,3]
[312098233,1705618251481,-181.17942115,0.00034788,7]
[312098234,1705618251490,-16000.0,0.00034791,3]
[312098235,1705618251499,-16000.0,0.000348,3]
[312098236,1705618251509,-181.17942115,0.00034898,7]
[312098237,1705618251518,-8959.21096598,0.000349,4]
[312098238,1705618251527,-14804.87286126,0.000349,2]
[312098239,1705618251537,-509.10731454,0.000349,2]
[312098240,1705618251546,-160.0,0.000349,3]
[312098241,1705618251556,-637.51756588,0.000349,2]
[312098242,1705618251565,-637.51756588,0.000349,2]
[312098243,1705618251574,-637.51756588,0.000349,2]
[312098244,1705618251583,-637.51756588,0.000349,2]
[312098245,1705618251593,-637.51756588,0.000349,2]
[312098246,1705618251602,-637.51756588,0.000349,2]
[312098247,1705618251612,-637.51756588,0.000349,2]
[312098248,1705618251621,-637.51756588,0.000349,2]
[312098249,1705618251630,-637.51756588,0.000349,2]
[312098250,1705618251639,-5631.99347675,0.000349,7]
[312098251,1705618251649,-700.0,0.000349,12]
[312098252,1705618251658,-848.17652308,0.000349,2]
[312098253,1705618251667,-886.98098412,0.000349,2]
[312098254,1705618251676,-457.32864088,0.000349,24]
[312098255,1705618251685,-162.78037958,0.000349,2]
[312098256,1705618251694,-500.0,0.00034967,3]
[312098257,1705618251704,-500.0,0.00034974,3]
[312098258,1705618251714,-300.0,0.00034975,10]
[312098259,1705618251723,-538.78509975,0.00034975,10]
[312098260,1705618251732,-500.0,0.00034976,3]
[312098261,1705618251742,-706.0337939,0.00034976,2]
[312098262,1705618251752,-681.0872282,0.00034976,2]
[312098263,1705618251762,-2747.8955783,0.00034976,2]
[312098264,1705618251772,-2648.525515,0.00034976,2]
[312098265,1705618251782,-1516.083044,0.00034976,2]
[312098266,1705618251792,-1459.2011045,0.00034976,2]
[312098267,1705618251802,-467.6706764,0.00034976,2]
[312098268,1705618251811,-429.2619246,0.00034976,2]
[312098269,1705618251821,-21377.4036483,0.00034976,2]
[312098270,1705618251831,-19658.3188778,0.00034976,2]
[312098271,1705618251840,-1154.6683315,0.00034976,2]
[312098272,1705618251849,-1061.8145511,0.00034976,2]
[312098273,1705618251859,-17539.9885291,0.00034976,2]
[312098274,1705618251868,-16234.4772059,0.00034976,2]
[312098275,1705618251878,-24164.9170077,0.00034976,2]
[312098276,1705618251887,-22366.3084896,0.00034976,2]
[312098277,1705618251896,-500.0,0.00034982,3]
[312098278,1705618251905,-500.0,0.00034991,3]
[312098279,1705618251914,-100000.0,0.00035,5]
[312098280,1705618251924,-8467.71637142,0.00035,2]
[312098281,1705618251933,-11565.06,0.00035,3]
[312098282,1705618251942,-448.18327905,0.00035,4]
[312098283,1705618251951,-155.0,0.00035,2]
[312098284,1705618251961,-15743.08896824,0.00035,7]
[312098285,1705618251970,-5000.0,0.00035,2]
[312098286,1705618251980,-4194.24110742,0.00035,4]
[312098287,1705618251991,-23496.4994526,0.00035,4]
[312098288,1705618252000,-155.0,0.00035,4]
[312098289,1705618252010,-3497.61223903,0.00035,15]
[312098290,1705618252019,-619.88962696,0.00035,4]
[312098291,1705618252028,-2500.0,0.00035,21]
[312098292,1705618252037,-1000.0,0.00035,2]
[312098293,1705618252047,-500.0,0.00035,30]
[312098294,1705618252056,-500.0,0.00035,30]
[312098295,1705618252065,-500.0,0.00035,30]
[312098296,1705618252074,-500.0,0.00035,30]
[312098297,1705618252084,-500.0,0.00035,30]
[312098298,1705618252093,-500.0,0.00035,30]
[312098299,1705618252102,-500.0,0.00035,30]
[312098300,1705618252111,-500.0,0.00035,30]
[312098301,1705618252122,-500.0,0.00035,30]
[312098302,1705618252132,-500.0,0.00035,30]
[312098303,1705618252142,-500.0,0.00035,30]
[312098304,1705618252152,-500.0,0.00035,30]
[312098305,1705618252162,-500.0,0.00035,30]
[312098306,1705618252172,-500.0,0.00035,30]
[312098307,1705618252182,-11220.14604212,0.00035,2]
[312098308,1705618252191,-1000.0,0.00035,5]
[312098309,1705618252200,-1014.0,0.00035,5]
[312098310,1705618252209,-500.0,0.00035,30]
[312098311,1705618252218,-500.0,0.00035,30]
[312098312,1705618252227,-500.0,0.00035,30]
[312098313,1705618252237,-500.0,0.00035,30]
[312098314,1705618252250,-500.0,0.00035,30]
[312098315,1705618252259,-500.0,0.00035,30]
[312098316,1705618252268,-500.0,0.00035,30]
[312098317,1705618252277,-500.0,0.00035,30]
[312098318,1705618252288,-500.0,0.00035,30]
[312098319,1705618252296,-500.0,0.00035,30]
[312098320,1705618252305,-500.0,0.00035,30]
[312098321,1705618252314,-500.0,0.00035,30]
[312098322,1705618252326,-500.0,0.00035,30]
[312098323,1705618252335,-500.0,0.00035,30]
[312098324,1705618252344,-500.0,0.00035,30]
[312098325,1705618252353,-500.0,0.00035,30]
[312098326,1705618252363,-500.0,0.00035,30]
[312098327,1705618252372,-500.0,0.00035,30]
[312098328,1705618252381,-500.0,0.00035,30]
[312098329,1705618252390,-500.0,0.00035,30]
[312098330,1705618252399,-500.0,0.00035,30]
[312098331,1705618252408,-500.0,0.00035,30]
[312098332,1705618252418,-500.0,0.00035,30]
[312098333,1705618252428,-500.0,0.00035,30]
[312098334,1705618252437,-500.0,0.00035,30]
[312098335,1705618252447,-500.0,0.00035,30]
[312098336,1705618252457,-500.0,0.00035,30]
[312098337,1705618252466,-500.0,0.00035,30]
[312098338,1705618252475,-500.0,0.00035,30]
[312098339,1705618252485,-500.0,0.00035,30]
[312098340,1705618252494,-500.0,0.00035,30]
[312098341,1705618252503,-179.89531904,0.00035,30]
[312098342,1705618252512,-500.0,0.00035,30]
[312098343,1705618252521,-500.0,0.00035,30]
[312098344,1705618252531,-500.0,0.00035,30]
[312098345,1705618252541,-500.0,0.00035,30]
[312098346,1705618252550,-500.0,0.00035,30]
[312098347,1705618252559,-500.0,0.00035,30]
[312098348,1705618252569,-500.0,0.00035,30]
[312098349,1705618252578,-500.0,0.00035,30]
[312098350,1705618252587,-2238779.76509368,0.00035,5]
[312098351,1705618252595,-200.0,0.00035,5]
[312098352,1705618252604,-200.0,0.00035,5]
[312098353,1705618252613,-500.0,0.00035,3]
[312098354,1705618252622,-151.0,0.00035,7]
[312098355,1705618252760,-151.0,0.00035,7]
[312098356,1705618252770,-151.0,0.00035,7]
[312098357,1705618252788,-151.0,0.00035,7]
[312098358,1705618252801,-151.0,0.00035,7]
[312098359,1705618252810,-151.0,0.00035,7]
[312098360,1705618252820,-151.0,0.00035,7]
[312098361,1705618252830,-278.23921,0.00035,7]
[312098362,1705618252839,-278.23921,0.00035,7]
[312098363,1705618252849,-529.010673,0.00035,7]
[312098364,1705618252858,-529.010673,0.00035,7]
[312098365,1705618252868,-151.0,0.00035,7]
[312098366,1705618252877,-151.0,0.00035,7]
[312098367,1705618252887,-151.0,0.00035,7]
[312098368,1705618252896,-151.0,0.00035,7]
[312098369,1705618252906,-151.0,0.00035,7]
[312098370,1705618252915,-151.0,0.00035,7]
[312098371,1705618252925,-151.0,0.00035,7]
[312098372,1705618252935,-151.0,0.00035,7]
[312098373,1705618252946,-547.26524,0.00035,7]
[312098374,1705618252955,-547.26524,0.00035,7]
[312098375,1705618252965,-151.0,0.00035,7]
[312098376,1705618252975,-151.0,0.00035,7]
[312098377,1705618252985,-151.0,0.00035,7]
[312098378,1705618252994,-1072.074095,0.00035,7]
[312098379,1705618253005,-1072.074095,0.00035,7]
[312098380,1705618253014,-276.992108,0.00035,2]
[312098381,1705618253024,-151.0,0.00035,7]
[312098382,1705618253034,-1965.797818,0.00035,7]
[312098383,1705618253043,-1965.797818,0.00035,7]
[312098384,1705618253053,-151.0,0.00035,7]
[312098385,1705618253062,-151.0,0.00035,7]
[312098386,1705618253072,-151.0,0.00035,7]
[312098387,1705618253082,-294.731373,0.00035,7]
[312098388,1705618253091,-20000.0,0.00035,2]
[312098389,1705618253101,-2000.0,0.00035,2]
[312098390,1705618253111,-262.93093633,0.00035,2]
[312098391,1705618253120,-2003.18070034,0.00035,3]
[312098392,1705618253130,-1000.0,0.00035015,2]
[312098393,1705618253140,-295.05028948,0.00035036,7]
[312098394,1705618253149,-3259.20725291,0.00035111,10]
[312098395,1705618253159,-295.05028948,0.00035177,7]
[312098396,1705618253169,-181.17942115,0.0003521,7]
[312098397,1705618253178,-158.11,0.00035225,2]
[312098398,1705618253187,-2010.76,0.000353,2]
[312098399,1705618253196,-308.68,0.000353,2]
[312098400,1705618253206,-171.397116,0.00035315,2]
[312098401,1705618253216,-193.529106,0.00035315,2]
[312098402,1705618253225,-4456.149545,0.00035315,2]
[312098403,1705618253235,-341.0,0.00035326,4]
[312098404,1705618253248,-874.662224,0.00035342,14]
[312098405,1705618253257,-55393.570875,0.00035353,2]
[312098406,1705618253267,-1106.2623504,0.00035353,5]
[312098407,1705618253276,-160.00331019,0.00035353,120]
[312098408,1705618253287,-37423.22353389,0.00035353,14]
[312098409,1705618253296,-167.36221848,0.00035353,7]
[312098410,1705618253305,-132961.85299921,0.00035353,7]
[312098411,1705618253315,-5951.94878562,0.00035353,7]
[312098412,1705618253325,-40405.54422812,0.00035353,7]
[312098413,1705618253335,-1917.306932,0.00035353,30]
[312098414,1705618253345,-1886.445896,0.00035353,30]
[312098415,1705618253355,-295.05028948,0.00035373,7]
[312098416,1705618253364,-157.88557466,0.00035377,7]
[312098417,1705618253375,-236.83,0.00035472,2]
[312098418,1705618253385,-299.34,0.00035472,2]
[312098419,1705618253395,-207.0,0.0003548,2]
[312098420,1705618253405,-295.05028948,0.0003548,7]
[312098421,1705618253414,-185.0,0.00035485,2]
[312098422,1705618253424,-657.66521815,0.000355,2]
[312098423,1705618253433,-181.17942115,0.00035596,7]
[312098424,1705618253443,-152.0,0.00035616,4]
[312098425,1705618253452,-150.0,0.00035616,2]
[312098426,1705618253462,-300.0,0.00035616,7]
[312098427,1705618253472,-1752.83,0.00035616,2]
[312098428,1705618253481,-153.84,0.00035616,2]
[312098429,1705618253491,-155.0,0.00035617,2]
[312098430,1705618253500,-207.64,0.000357,2]
[312098431,1705618253510,-16086.28,0.000357,7]
[312098432,1705618253519,-19335.64,0.000357,7]
[312098433,1705618253529,-30634.8,0.000357,7]
[312098434,1705618253538,-4456.149545,0.00035756,2]
[312098435,1705618253548,-295.05028948,0.00035932,7]
[312098436,1705618253557,-637.51756588,0.00035969,2]
[312098437,1705618253566,-200.0,0.00035987,5]
[312098438,1705618253577,-151.5350356,0.0003599,7]
[312098439,1705618253586,-1827.07,0.00035995,5]
[312098440,1705618253595,-6851.88785275,0.00035998,4]
[312098441,1705618253605,-155.28190917,0.00035998,4]
[312098442,1705618253614,-100000.0,0.00036,6]
[312098443,1705618253627,-10433.1703733,0.00036,4]
[312098444,1705618253637,-659.76704358,0.00036,30]
[312098445,1705618253646,-170.57866498,0.00036,30]
[312098446,1705618253656,-1000.0,0.00036,6]
[312098447,1705618253666,-1000.0,0.00036,6]
[312098448,1705618253685,-900.0,0.00036,3]
[312098449,1705618253710,-5000.0,0.00036,10]
[312098450,1705618253730,-5000.0,0.00036,14]
[312098451,1705618253751,-1008.954,0.00036077,2]
[312098452,1705618253772,-295.05028948,0.00036095,7]
[312098453,1705618253789,-16086.28,0.000361,7]
[312098454,1705618253806,-19335.64,0.000361,7]
[312098455,1705618253823,-30634.8,0.000361,7]
[312098456,1705618253842,-164.75235422,0.00036138,7]
[312098457,1705618253864,-4456.149545,0.00036198,2]
[312098458,1705618253881,-158.11,0.00036203,2]
[312098459,1705618253901,-176.0,0.00036247,2]
[312098460,1705618253921,-189.0,0.00036247,2]
[312098461,1705618253936,-155.0,0.00036247,2]
[312098462,1705618253953,-1000.0,0.00036261,2]
[312098463,1705618253973,-2052.0,0.00036373,30]
[312098464,1705618253990,-181.17942115,0.00036379,7]
[312098465,1705618254009,-2010.76,0.00036385,2]
[312098466,1705618254028,-874.662224,0.00036438,14]
[312098467,1705618254047,-308.68,0.0003645,2]
[312098468,1705618254065,-204.0,0.00036454,24]
[312098469,1705618254083,-16086.28,0.000365,7]
[312098470,1705618254100,-19335.64,0.000365,7]
[312098471,1705618254119,-30634.8,0.000365,7]